[Event "Early-Titled-Tuesday-Blitz-February-13-2024"]
[Site "Chess.com"]
[Date "2024.02.13"]
[Round "3"]
[White "DIMONBANAN"]
[Black "CaspiIsrael"]
[Result "1-0"]
[WhiteElo "2573"]
[BlackElo "2761"]
[TimeControl "180+1"]
[EndTime "8:32:35 PST"]
[Termination "DIMONBANAN won by resignation"]

1. e4 {[%clk 0:02:53.8]} 1... e6 {[%clk 0:02:57.4]} 2. d4 {[%clk 0:02:53.7]}
2... d5 {[%clk 0:02:56.3]} 3. Nc3 {[%clk 0:02:53.9]} 3... Bb4 {[%clk 0:02:54]}
4. e5 {[%clk 0:02:54.2]} 4... c5 {[%clk 0:02:50.8]} 5. a3 {[%clk 0:02:54.3]}
5... Ba5 {[%clk 0:02:51.3]} 6. b4 {[%clk 0:02:54.1]} 6... cxd4 {[%clk
0:02:49.1]} 7. Nb5 {[%clk 0:02:53.4]} 7... Bc7 {[%clk 0:02:47.2]} 8. f4 {[%clk
0:02:49.8]} 8... Nc6 {[%clk 0:02:44.3]} 9. Nf3 {[%clk 0:02:49.1]} 9... Nge7
{[%clk 0:02:44.8]} 10. Bd3 {[%clk 0:02:44.7]} 10... Nf5 {[%clk 0:02:41.1]} 11.
Bb2 {[%clk 0:02:38.1]} 11... O-O {[%clk 0:02:35.5]} 12. Nbxd4 {[%clk 0:02:30.7]}
12... Ncxd4 {[%clk 0:02:30.1]} 13. Nxd4 {[%clk 0:02:30.5]} 13... Qh4+ {[%clk
0:02:29.6]} 14. g3 {[%clk 0:02:24.1]} 14... Nxg3 {[%clk 0:02:27.8]} 15. Nf3
{[%clk 0:02:24.5]} 15... Qh6 {[%clk 0:02:05.7]} 16. Rg1 {[%clk 0:02:22.6]} 16...
Ne4 {[%clk 0:02:04.6]} 17. Bxe4 {[%clk 0:02:08.1]} 17... dxe4 {[%clk 0:02:03.1]}
18. Ng5 {[%clk 0:02:08.3]} 18... Qh4+ {[%clk 0:02:00.2]} 19. Rg3 {[%clk
0:01:48.1]} 19... Qxh2 {[%clk 0:01:57.9]} 20. Qg4 {[%clk 0:01:45.7]} 20... h5
{[%clk 0:01:57.5]} 21. Qh3 {[%clk 0:01:34.5]} 21... Qxh3 {[%clk 0:01:56.1]} 22.
Rxh3 {[%clk 0:01:35.4]} 22... g6 {[%clk 0:01:53]} 23. Nxe4 {[%clk 0:01:33.2]}
23... Bd8 {[%clk 0:01:50.6]} 24. O-O-O {[%clk 0:01:31.3]} 24... b6 {[%clk
0:01:47.2]} 25. Rg1 {[%clk 0:01:19.2]} 25... Kh7 {[%clk 0:01:40.3]} 26. Nd6
{[%clk 0:00:50.3]} 26... Be7 {[%clk 0:01:26.5]} 27. Rc3 {[%clk 0:00:43.8]} 27...
Ba6 {[%clk 0:00:49.5]} 28. b5 {[%clk 0:00:35.4]} 28... Bxd6 {[%clk 0:00:48.3]}
29. bxa6 {[%clk 0:00:33.6]} 29... Bc5 {[%clk 0:00:47.4]} 30. Rd1 {[%clk
0:00:26.5]} 30... Rfd8 {[%clk 0:00:46.7]} 31. Rcd3 {[%clk 0:00:26.8]} 31... Rxd3
{[%clk 0:00:44.6]} 32. Rxd3 {[%clk 0:00:27.7]} 32... g5 {[%clk 0:00:40.6]} 33.
fxg5 {[%clk 0:00:23.3]} 33... Kg6 {[%clk 0:00:40.9]} 34. Kd1 {[%clk 0:00:20.5]}
34... Kxg5 {[%clk 0:00:39.8]} 35. Rd7 {[%clk 0:00:21]} 35... h4 {[%clk
0:00:36.5]} 36. Rxf7 {[%clk 0:00:19.8]} 36... Rh8 {[%clk 0:00:36]} 37. Bc1+
{[%clk 0:00:19.7]} 37... Kg4 {[%clk 0:00:35.2]} 38. Ke2 {[%clk 0:00:18]} 38...
h3 {[%clk 0:00:34.2]} 39. Rg7+ {[%clk 0:00:09]} 39... Kf5 {[%clk 0:00:31.8]} 40.
Kf3 {[%clk 0:00:09.4]} 40... Kxe5 {[%clk 0:00:22.5]} 41. Bb2+ {[%clk 0:00:08.1]}
41... Bd4 {[%clk 0:00:21.6]} 42. Rg5+ {[%clk 0:00:08.7]} 42... Kf6 {[%clk
0:00:17.6]} 43. Bxd4+ {[%clk 0:00:08.9]} 43... Kxg5 {[%clk 0:00:17.7]} 44. Bxh8
{[%clk 0:00:09.5]} 44... h2 {[%clk 0:00:13.5]} 45. Kg2 {[%clk 0:00:09.5]} 45...
Kf4 {[%clk 0:00:13.5]} 46. Bd4 {[%clk 0:00:09.9]} 46... Ke4 {[%clk 0:00:11.5]}
47. Bxb6 {[%clk 0:00:10.3]} 47... Kd5 {[%clk 0:00:11]} 48. Bxa7 {[%clk
0:00:10.7]} 48... Kc6 {[%clk 0:00:11.5]} 49. Be3 {[%clk 0:00:10.7]} 49... e5
{[%clk 0:00:10.6]} 50. Kxh2 {[%clk 0:00:10.8]} 50... e4 {[%clk 0:00:11.2]} 51.
Kg3 {[%clk 0:00:11.1]} 1-0

[Event "Early-Titled-Tuesday-Blitz-February-13-2024"]
[Site "Chess.com"]
[Date "2024.02.13"]
[Round "3"]
[White "Karttunen"]
[Black "JERO-8914"]
[Result "1-0"]
[WhiteElo "2628"]
[BlackElo "2435"]
[TimeControl "180+1"]
[EndTime "8:32:35 PST"]
[Termination "Karttunen won by resignation"]

1. d4 {[%clk 0:03:00.9]} 1... d5 {[%clk 0:02:59.6]} 2. c4 {[%clk 0:03:00.2]}
2... e6 {[%clk 0:02:59.9]} 3. Nc3 {[%clk 0:03:00]} 3... Nf6 {[%clk 0:03:00]} 4.
cxd5 {[%clk 0:02:59.6]} 4... Nxd5 {[%clk 0:03:00.4]} 5. e4 {[%clk 0:02:59.1]}
5... Nxc3 {[%clk 0:03:00.7]} 6. bxc3 {[%clk 0:03:00]} 6... c5 {[%clk 0:03:01.5]}
7. Nf3 {[%clk 0:02:58.9]} 7... cxd4 {[%clk 0:03:01.8]} 8. cxd4 {[%clk
0:02:59.3]} 8... Bb4+ {[%clk 0:03:02.7]} 9. Bd2 {[%clk 0:02:59.4]} 9... Bxd2+
{[%clk 0:03:03.3]} 10. Qxd2 {[%clk 0:03:00.3]} 10... O-O {[%clk 0:03:04.2]} 11.
Bc4 {[%clk 0:03:00.4]} 11... b6 {[%clk 0:03:03.8]} 12. O-O {[%clk 0:03:00.2]}
12... Bb7 {[%clk 0:03:04.4]} 13. Qf4 {[%clk 0:02:56.9]} 13... Nd7 {[%clk
0:03:01.4]} 14. Rad1 {[%clk 0:02:54]} 14... Nf6 {[%clk 0:03:00.3]} 15. Rfe1
{[%clk 0:02:52.2]} 15... Rc8 {[%clk 0:02:57]} 16. Bd3 {[%clk 0:02:50]} 16... Qc7
{[%clk 0:02:57.3]} 17. Qh4 {[%clk 0:02:43.7]} 17... h6 {[%clk 0:02:50.2]} 18. d5
{[%clk 0:01:54.5]} 18... exd5 {[%clk 0:02:47.2]} 19. e5 {[%clk 0:01:54.5]} 19...
Ne4 {[%clk 0:02:47.3]} 20. g4 {[%clk 0:01:37.6]} 20... Rfe8 {[%clk 0:02:29]} 21.
g5 {[%clk 0:01:34]} 21... Re6 {[%clk 0:02:19.2]} 22. Nd4 {[%clk 0:01:24.2]}
22... Rg6 {[%clk 0:02:07.4]} 23. f3 {[%clk 0:01:13.9]} 23... Rxg5+ {[%clk
0:01:56.1]} 24. Kh1 {[%clk 0:01:12]} 24... Nc5 {[%clk 0:01:53.5]} 25. f4 {[%clk
0:01:09.1]} 25... Nxd3 {[%clk 0:01:47.7]} 26. Rxd3 {[%clk 0:01:09]} 26... Rg6
{[%clk 0:01:25.5]} 27. f5 {[%clk 0:01:07.9]} 27... Rg5 {[%clk 0:01:25.1]} 28. e6
{[%clk 0:01:07.8]} 28... fxe6 {[%clk 0:01:17.7]} 29. fxe6 {[%clk 0:01:05.7]}
29... Re8 {[%clk 0:01:15.3]} 30. Rde3 {[%clk 0:01:02.2]} 30... Qe7 {[%clk
0:01:04.2]} 31. Qf2 {[%clk 0:00:51.4]} 31... Rf8 {[%clk 0:01:00.8]} 32. Rf3
{[%clk 0:00:45.1]} 32... Rxf3 {[%clk 0:00:55.7]} 33. Qxf3 {[%clk 0:00:45.1]}
33... Kh7 {[%clk 0:00:35.4]} 34. Qd3+ {[%clk 0:00:44]} 34... Kg8 {[%clk
0:00:33.9]} 35. Qb5 {[%clk 0:00:35.1]} 35... Rg6 {[%clk 0:00:20.5]} 36. Qe2
{[%clk 0:00:19.4]} 36... a6 {[%clk 0:00:15.7]} 37. Rf1 {[%clk 0:00:15.7]} 37...
Rf6 {[%clk 0:00:12.2]} 38. Rxf6 {[%clk 0:00:13.8]} 38... gxf6 {[%clk 0:00:12.7]}
39. Qg4+ {[%clk 0:00:12.9]} 39... Qg7 {[%clk 0:00:12]} 40. Qf4 {[%clk
0:00:10.1]} 40... Kh7 {[%clk 0:00:09.5]} 41. Qf5+ {[%clk 0:00:09.2]} 41... Kg8
{[%clk 0:00:09.5]} 42. Qf4 {[%clk 0:00:08.5]} 42... Qe7 {[%clk 0:00:09.7]} 43.
Qb8+ {[%clk 0:00:07.3]} 43... Kg7 {[%clk 0:00:09.6]} 44. Nf5+ {[%clk 0:00:07.3]}
44... Kg6 {[%clk 0:00:09.9]} 45. Nxe7+ {[%clk 0:00:07.7]} 45... Kg5 {[%clk
0:00:10.6]} 46. Qxb7 {[%clk 0:00:07.8]} 46... Kf4 {[%clk 0:00:11]} 47. Nxd5+
{[%clk 0:00:08]} 47... Ke5 {[%clk 0:00:11.9]} 48. Nxb6 {[%clk 0:00:08.5]} 48...
Kd6 {[%clk 0:00:12.6]} 49. Qd7+ {[%clk 0:00:08.9]} 49... Kc5 {[%clk 0:00:13.5]}
50. e7 {[%clk 0:00:09.4]} 50... Kxb6 {[%clk 0:00:13.1]} 51. e8=Q {[%clk
0:00:09.7]} 51... Ka5 {[%clk 0:00:14]} 52. Qed8+ {[%clk 0:00:09.9]} 1-0

[Event "Early-Titled-Tuesday-Blitz-February-13-2024"]
[Site "Chess.com"]
[Date "2024.02.13"]
[Round "3"]
[White "Zheenbekov86"]
[Black "rcmz"]
[Result "1-0"]
[WhiteElo "2420"]
[BlackElo "2185"]
[TimeControl "180+1"]
[EndTime "8:32:35 PST"]
[Termination "Zheenbekov86 won on time"]

1. e4 {[%clk 0:02:58.8]} 1... a6 {[%clk 0:02:59.2]} 2. d4 {[%clk 0:02:58]} 2...
b5 {[%clk 0:02:59]} 3. Nf3 {[%clk 0:02:58.1]} 3... Bb7 {[%clk 0:02:59]} 4. Bd3
{[%clk 0:02:58.3]} 4... e6 {[%clk 0:02:59.2]} 5. O-O {[%clk 0:02:58.1]} 5... c5
{[%clk 0:02:59.2]} 6. c3 {[%clk 0:02:54.1]} 6... c4 {[%clk 0:02:59.2]} 7. Bc2
{[%clk 0:02:53.6]} 7... Qc7 {[%clk 0:02:59.1]} 8. e5 {[%clk 0:02:49.2]} 8... d6
{[%clk 0:02:53.5]} 9. Re1 {[%clk 0:02:43.3]} 9... Nd7 {[%clk 0:02:52.1]} 10.
Nbd2 {[%clk 0:02:28]} 10... Be7 {[%clk 0:02:49.6]} 11. exd6 {[%clk 0:02:25.4]}
11... Bxd6 {[%clk 0:02:48.6]} 12. Ne4 {[%clk 0:02:25.4]} 12... Bxe4 {[%clk
0:02:47.2]} 13. Bxe4 {[%clk 0:02:24.8]} 13... Rb8 {[%clk 0:02:46]} 14. Qe2
{[%clk 0:02:18]} 14... Ngf6 {[%clk 0:02:44.3]} 15. Bc2 {[%clk 0:02:17.9]} 15...
O-O {[%clk 0:02:41.6]} 16. h3 {[%clk 0:02:17.9]} 16... Bf4 {[%clk 0:02:39]} 17.
Be3 {[%clk 0:02:03]} 17... Nd5 {[%clk 0:02:30]} 18. Ng5 {[%clk 0:01:48.2]} 18...
Nxe3 {[%clk 0:01:53.4]} 19. Bxh7+ {[%clk 0:00:36.1]} 19... Kh8 {[%clk
0:01:51.7]} 20. Nxf7+ {[%clk 0:00:20.6]} 20... Kxh7 {[%clk 0:01:40.2]} 21. Qh5+
{[%clk 0:00:19.7]} 21... Kg8 {[%clk 0:01:38.8]} 22. fxe3 {[%clk 0:00:16.5]}
22... Rxf7 {[%clk 0:01:35.4]} 23. exf4 {[%clk 0:00:15.7]} 23... Qxf4 {[%clk
0:01:33.1]} 24. Rxe6 {[%clk 0:00:15.5]} 24... Rb6 {[%clk 0:01:19.8]} 25. Re8+
{[%clk 0:00:14.1]} 25... Nf8 {[%clk 0:01:14.1]} 26. Rae1 {[%clk 0:00:12.7]}
26... Qf2+ {[%clk 0:00:41.5]} 27. Kh1 {[%clk 0:00:12.4]} 27... Rh6 {[%clk
0:00:36.9]} 28. Qd5 {[%clk 0:00:12.1]} 28... Kh7 {[%clk 0:00:30.3]} 29. Qe4+
{[%clk 0:00:10.9]} 29... Qf5 {[%clk 0:00:24.7]} 30. Qe2 {[%clk 0:00:10.6]} 30...
Rff6 {[%clk 0:00:18]} 31. Ra8 {[%clk 0:00:08.8]} 31... Re6 {[%clk 0:00:10.3]}
32. Qd2 {[%clk 0:00:08.7]} 32... Rxe1+ {[%clk 0:00:08.7]} 33. Qxe1 {[%clk
0:00:08.9]} 33... Qf4 {[%clk 0:00:07.3]} 34. Qe2 {[%clk 0:00:08.2]} 34... Ng6
{[%clk 0:00:04.8]} 35. Qe8 {[%clk 0:00:06.5]} 35... Nh4 {[%clk 0:00:03.2]} 36.
Qg8+ {[%clk 0:00:06]} 36... Kg6 {[%clk 0:00:02.6]} 37. Rxa6+ {[%clk 0:00:05.9]}
37... Kh5 {[%clk 0:00:02.7]} 38. Qe8+ {[%clk 0:00:05.3]} 38... g6 {[%clk
0:00:02.3]} 39. Qe2+ {[%clk 0:00:04.1]} 39... Kg5 {[%clk 0:00:01.2]} 40. Rb6
{[%clk 0:00:02.2]} 1-0

[Event "Early-Titled-Tuesday-Blitz-February-13-2024"]
[Site "Chess.com"]
[Date "2024.02.13"]
[Round "3"]
[White "Preobrazhenska_D2011"]
[Black "Klavdia_Nik"]
[Result "1-0"]
[WhiteElo "2355"]
[BlackElo "2125"]
[TimeControl "180+1"]
[EndTime "8:32:35 PST"]
[Termination "Preobrazhenska_D2011 won on time"]

1. e4 {[%clk 0:03:00]} 1... c5 {[%clk 0:02:56]} 2. Nf3 {[%clk 0:03:00.3]} 2...
b6 {[%clk 0:02:51.4]} 3. d4 {[%clk 0:02:54.7]} 3... Bb7 {[%clk 0:02:51.1]} 4.
Nc3 {[%clk 0:02:50.5]} 4... g6 {[%clk 0:02:47.7]} 5. Be2 {[%clk 0:02:45.9]} 5...
Bg7 {[%clk 0:02:47.7]} 6. O-O {[%clk 0:02:46.3]} 6... cxd4 {[%clk 0:02:38.6]} 7.
Nxd4 {[%clk 0:02:47.2]} 7... Nc6 {[%clk 0:02:38.8]} 8. Be3 {[%clk 0:02:45.4]}
8... d6 {[%clk 0:02:37.3]} 9. Bb5 {[%clk 0:02:37.6]} 9... Rc8 {[%clk 0:02:32.3]}
10. Nd5 {[%clk 0:02:16.1]} 10... Nf6 {[%clk 0:02:26.5]} 11. Nb4 {[%clk
0:02:09.8]} 11... Qd7 {[%clk 0:02:12]} 12. Nbxc6 {[%clk 0:02:07.4]} 12... Bxc6
{[%clk 0:02:12.9]} 13. Nxc6 {[%clk 0:02:06.6]} 13... Rxc6 {[%clk 0:02:12.7]} 14.
Bxc6 {[%clk 0:01:40.4]} 14... Qxc6 {[%clk 0:02:12.1]} 15. f3 {[%clk 0:01:36.3]}
15... O-O {[%clk 0:02:09.8]} 16. c3 {[%clk 0:01:34.2]} 16... a6 {[%clk
0:02:06.5]} 17. Qd3 {[%clk 0:01:33.1]} 17... b5 {[%clk 0:02:06]} 18. Rfd1 {[%clk
0:01:23.8]} 18... Nd7 {[%clk 0:02:03.6]} 19. Bd4 {[%clk 0:01:16.4]} 19... Ne5
{[%clk 0:01:57.6]} 20. Qe2 {[%clk 0:01:14.2]} 20... g5 {[%clk 0:01:52.7]} 21.
Be3 {[%clk 0:00:59.9]} 21... h6 {[%clk 0:01:50.6]} 22. f4 {[%clk 0:00:55.8]}
22... gxf4 {[%clk 0:01:50.3]} 23. Bxf4 {[%clk 0:00:56.1]} 23... Ng6 {[%clk
0:01:44.5]} 24. Bg3 {[%clk 0:00:52.1]} 24... Rc8 {[%clk 0:01:41.4]} 25. Rd5
{[%clk 0:00:50.6]} 25... Qc4 {[%clk 0:01:22.6]} 26. Qxc4 {[%clk 0:00:43.5]}
26... Rxc4 {[%clk 0:01:23.5]} 27. Re1 {[%clk 0:00:42.6]} 27... b4 {[%clk
0:01:09]} 28. cxb4 {[%clk 0:00:41.9]} 28... Rxb4 {[%clk 0:01:09.9]} 29. b3
{[%clk 0:00:37.3]} 29... Rb6 {[%clk 0:01:05.8]} 30. Rc1 {[%clk 0:00:35.2]} 30...
Bb2 {[%clk 0:00:49.3]} 31. Rc8+ {[%clk 0:00:33.4]} 31... Kg7 {[%clk 0:00:49.4]}
32. Bf2 {[%clk 0:00:31.2]} 32... Rb4 {[%clk 0:00:43.9]} 33. Rc4 {[%clk
0:00:31.4]} 33... Ba3 {[%clk 0:00:33.4]} 34. Ra5 {[%clk 0:00:23.1]} 34... Rxc4
{[%clk 0:00:23.2]} 35. bxc4 {[%clk 0:00:24]} 35... Bb4 {[%clk 0:00:22.6]} 36.
Rxa6 {[%clk 0:00:24.3]} 36... Nf4 {[%clk 0:00:22.6]} 37. Kf1 {[%clk 0:00:20.2]}
37... Nd3 {[%clk 0:00:17]} 38. a4 {[%clk 0:00:19.3]} 38... Kf6 {[%clk
0:00:07.3]} 39. Ra8 {[%clk 0:00:17.3]} 39... Ke5 {[%clk 0:00:06.6]} 40. Re8
{[%clk 0:00:12.6]} 40... e6 {[%clk 0:00:03.9]} 41. Ke2 {[%clk 0:00:09.1]} 41...
Kxe4 {[%clk 0:00:02.7]} 42. Rb8 {[%clk 0:00:08.7]} 1-0

[Event "Early-Titled-Tuesday-Blitz-February-13-2024"]
[Site "Chess.com"]
[Date "2024.02.13"]
[Round "3"]
[White "Durarbayli"]
[Black "faraone99"]
[Result "1-0"]
[WhiteElo "2928"]
[BlackElo "2532"]
[TimeControl "180+1"]
[EndTime "8:32:37 PST"]
[Termination "Durarbayli won by resignation"]

1. c4 {[%clk 0:03:00.9]} 1... e6 {[%clk 0:02:56.3]} 2. e4 {[%clk 0:03:00.6]}
2... d5 {[%clk 0:02:55.5]} 3. exd5 {[%clk 0:03:01.5]} 3... exd5 {[%clk 0:02:56]}
4. d4 {[%clk 0:03:02.4]} 4... Nf6 {[%clk 0:02:55.8]} 5. Nc3 {[%clk 0:03:02.3]}
5... Bb4 {[%clk 0:02:52.7]} 6. Bd3 {[%clk 0:03:02.2]} 6... O-O {[%clk
0:02:51.9]} 7. Ne2 {[%clk 0:03:02.7]} 7... Nc6 {[%clk 0:02:49.6]} 8. O-O {[%clk
0:03:01.8]} 8... Re8 {[%clk 0:02:47.9]} 9. Bg5 {[%clk 0:02:53.5]} 9... dxc4
{[%clk 0:02:46.9]} 10. Bxc4 {[%clk 0:02:52]} 10... Be7 {[%clk 0:02:42.4]} 11.
Re1 {[%clk 0:02:30.8]} 11... h6 {[%clk 0:02:32.1]} 12. Bh4 {[%clk 0:02:26.6]}
12... Bf5 {[%clk 0:02:00.6]} 13. Qb3 {[%clk 0:02:21.9]} 13... Na5 {[%clk
0:01:57.2]} 14. Bxf7+ {[%clk 0:02:21.6]} 14... Kf8 {[%clk 0:01:56.4]} 15. Qb5
{[%clk 0:02:20.8]} 15... Bd7 {[%clk 0:01:49.1]} 16. Qxa5 {[%clk 0:02:00.2]}
16... Kxf7 {[%clk 0:01:49.3]} 17. Bxf6 {[%clk 0:01:56.6]} 17... Bxf6 {[%clk
0:01:45.9]} 18. Nf4 {[%clk 0:01:57.1]} 18... c6 {[%clk 0:01:37.3]} 19. Qh5+
{[%clk 0:01:53.3]} 19... Kg8 {[%clk 0:01:36.3]} 20. d5 {[%clk 0:01:53.9]} 20...
Bxc3 {[%clk 0:01:27.6]} 21. bxc3 {[%clk 0:01:53.6]} 21... Qf6 {[%clk 0:01:27.6]}
22. Qf3 {[%clk 0:01:41.1]} 22... Rf8 {[%clk 0:01:20.1]} 23. Re4 {[%clk
0:01:24.7]} 23... cxd5 {[%clk 0:01:15.2]} 24. Rd4 {[%clk 0:01:23.7]} 24... Bc6
{[%clk 0:01:14.4]} 25. Qg3 {[%clk 0:01:11.5]} 25... Rae8 {[%clk 0:01:06.2]} 26.
h3 {[%clk 0:00:48.1]} 26... Re5 {[%clk 0:00:45.5]} 27. Rad1 {[%clk 0:00:41.7]}
27... Rg5 {[%clk 0:00:44.7]} 28. Qe3 {[%clk 0:00:38.1]} 28... Rf5 {[%clk
0:00:44.6]} 29. g3 {[%clk 0:00:20.4]} 29... g5 {[%clk 0:00:41.5]} 30. Nd3 {[%clk
0:00:19.5]} 30... Re8 {[%clk 0:00:38.6]} 31. Qd2 {[%clk 0:00:18.1]} 31... Re4
{[%clk 0:00:35.5]} 32. Re1 {[%clk 0:00:17.5]} 32... Rxd4 {[%clk 0:00:34.7]} 33.
cxd4 {[%clk 0:00:17.8]} 33... Qxd4 {[%clk 0:00:34.4]} 34. Qe2 {[%clk 0:00:16.6]}
34... Qe4 {[%clk 0:00:30.7]} 35. Qd2 {[%clk 0:00:14]} 35... Qd4 {[%clk
0:00:30.8]} 36. Qe2 {[%clk 0:00:13.3]} 36... Qe4 {[%clk 0:00:31.2]} 37. Qd1
{[%clk 0:00:13.3]} 37... Qf3 {[%clk 0:00:29.6]} 38. Qxf3 {[%clk 0:00:08.5]}
38... Rxf3 {[%clk 0:00:30.5]} 39. Rd1 {[%clk 0:00:07.7]} 39... Kg7 {[%clk
0:00:27.3]} 40. Rd2 {[%clk 0:00:06.7]} 40... Rf7 {[%clk 0:00:27.1]} 41. Ne5
{[%clk 0:00:06.1]} 41... Re7 {[%clk 0:00:26.9]} 42. f4 {[%clk 0:00:06.8]} 42...
gxf4 {[%clk 0:00:26.8]} 43. gxf4 {[%clk 0:00:07.7]} 43... Kf6 {[%clk 0:00:27.5]}
44. Kf2 {[%clk 0:00:08.4]} 44... Kf5 {[%clk 0:00:27.8]} 45. Ke3 {[%clk
0:00:08.9]} 45... Rg7 {[%clk 0:00:26.5]} 46. Kf3 {[%clk 0:00:06]} 46... d4+
{[%clk 0:00:25.5]} 47. Nxc6 {[%clk 0:00:06]} 47... bxc6 {[%clk 0:00:26]} 48.
Rxd4 {[%clk 0:00:06.9]} 48... Rb7 {[%clk 0:00:24.7]} 49. Rc4 {[%clk 0:00:07]}
49... Rb6 {[%clk 0:00:24.9]} 50. Rc5+ {[%clk 0:00:07.5]} 50... Kf6 {[%clk
0:00:25.1]} 51. a4 {[%clk 0:00:07.3]} 51... Ra6 {[%clk 0:00:24]} 52. a5 {[%clk
0:00:07.7]} 52... Ke6 {[%clk 0:00:24]} 53. Ke4 {[%clk 0:00:08.2]} 53... Kd6
{[%clk 0:00:24.4]} 54. Kd4 {[%clk 0:00:09.1]} 54... Kd7 {[%clk 0:00:21]} 55. h4
{[%clk 0:00:08.7]} 55... Ke7 {[%clk 0:00:21.3]} 56. f5 {[%clk 0:00:08.6]} 56...
Kf6 {[%clk 0:00:21.4]} 57. Ke4 {[%clk 0:00:09]} 57... Ke7 {[%clk 0:00:21]} 58.
Ke5 {[%clk 0:00:09.9]} 58... Kd7 {[%clk 0:00:20]} 59. f6 {[%clk 0:00:10.8]} 1-0

[Event "Early-Titled-Tuesday-Blitz-February-13-2024"]
[Site "Chess.com"]
[Date "2024.02.13"]
[Round "3"]
[White "Maitreia"]
[Black "pooh2012"]
[Result "0-1"]
[WhiteElo "2767"]
[BlackElo "2571"]
[TimeControl "180+1"]
[EndTime "8:32:38 PST"]
[Termination "pooh2012 won on time"]

1. c4 {[%clk 0:03:00.9]} 1... d5 {[%clk 0:02:55.7]} 2. cxd5 {[%clk 0:03:00.8]}
2... Nf6 {[%clk 0:02:56.2]} 3. Nc3 {[%clk 0:03:00.8]} 3... Nxd5 {[%clk
0:02:54.8]} 4. Nxd5 {[%clk 0:03:01.7]} 4... Qxd5 {[%clk 0:02:54.2]} 5. Nf3
{[%clk 0:03:02.6]} 5... g6 {[%clk 0:02:53.5]} 6. g3 {[%clk 0:03:02.8]} 6... Bg7
{[%clk 0:02:53.3]} 7. Bg2 {[%clk 0:03:03.5]} 7... Qd6 {[%clk 0:02:50.5]} 8. O-O
{[%clk 0:03:03.8]} 8... O-O {[%clk 0:02:49.7]} 9. d3 {[%clk 0:03:04.4]} 9... c6
{[%clk 0:02:48.4]} 10. Bf4 {[%clk 0:02:56.5]} 10... Qb4 {[%clk 0:02:43.5]} 11.
Rb1 {[%clk 0:02:50.7]} 11... a5 {[%clk 0:02:34.7]} 12. a3 {[%clk 0:02:48.7]}
12... Qb5 {[%clk 0:02:24.2]} 13. b4 {[%clk 0:02:44.2]} 13... axb4 {[%clk
0:02:22.3]} 14. Rxb4 {[%clk 0:02:44.5]} 14... Qa5 {[%clk 0:02:06.8]} 15. Re4
{[%clk 0:02:39.1]} 15... Qxa3 {[%clk 0:01:56.4]} 16. Be5 {[%clk 0:02:15.9]}
16... Bf5 {[%clk 0:01:31.6]} 17. Bxg7 {[%clk 0:02:04.3]} 17... Kxg7 {[%clk
0:01:32.5]} 18. Rh4 {[%clk 0:01:58.6]} 18... h5 {[%clk 0:01:22.6]} 19. Nd4
{[%clk 0:01:51.7]} 19... Bg4 {[%clk 0:01:15.7]} 20. h3 {[%clk 0:01:48.6]} 20...
g5 {[%clk 0:01:11.7]} 21. Rxg4 {[%clk 0:01:36.9]} 21... hxg4 {[%clk 0:01:11.2]}
22. Nf5+ {[%clk 0:01:36.8]} 22... Kf6 {[%clk 0:01:08.8]} 23. hxg4 {[%clk
0:01:35.7]} 23... e6 {[%clk 0:01:07]} 24. Ne3 {[%clk 0:01:33]} 24... Nd7 {[%clk
0:01:02.1]} 25. Qb1 {[%clk 0:01:32]} 25... Rfb8 {[%clk 0:00:52.6]} 26. Nc4
{[%clk 0:01:13.5]} 26... Qc5 {[%clk 0:00:51.8]} 27. Qb2+ {[%clk 0:01:10.6]}
27... Ke7 {[%clk 0:00:48.1]} 28. Rc1 {[%clk 0:01:05.9]} 28... Qa7 {[%clk
0:00:21.9]} 29. Qb4+ {[%clk 0:00:56]} 29... Qc5 {[%clk 0:00:21.1]} 30. Qd2
{[%clk 0:00:55.9]} 30... Ra4 {[%clk 0:00:16.6]} 31. Nb2 {[%clk 0:00:49.3]} 31...
Qa5 {[%clk 0:00:16.5]} 32. Qc2 {[%clk 0:00:29.4]} 32... Ra2 {[%clk 0:00:16.4]}
33. Qb3 {[%clk 0:00:26.4]} 33... Qa3 {[%clk 0:00:16.3]} 34. Qxa3+ {[%clk
0:00:15.3]} 34... Rxa3 {[%clk 0:00:17.2]} 35. Nc4 {[%clk 0:00:16.2]} 35... Ra2
{[%clk 0:00:17.3]} 36. Bf3 {[%clk 0:00:16.7]} 36... b5 {[%clk 0:00:14.7]} 37.
Ne3 {[%clk 0:00:16]} 37... c5 {[%clk 0:00:14.6]} 38. Kg2 {[%clk 0:00:14.5]}
38... Kd6 {[%clk 0:00:13.5]} 39. Rh1 {[%clk 0:00:13.4]} 39... Ne5 {[%clk
0:00:13.5]} 40. Rh5 {[%clk 0:00:12.5]} 40... f6 {[%clk 0:00:11.2]} 41. Rh7
{[%clk 0:00:11.7]} 41... b4 {[%clk 0:00:10.1]} 42. Rh6 {[%clk 0:00:07]} 42... b3
{[%clk 0:00:09.1]} 43. Rxf6 {[%clk 0:00:07.3]} 43... b2 {[%clk 0:00:09.1]} 44.
Nf5+ {[%clk 0:00:06.5]} 44... Kd7 {[%clk 0:00:07.8]} 45. Ng7 {[%clk 0:00:03.4]}
45... b1=Q {[%clk 0:00:06.9]} 46. Nxe6 {[%clk 0:00:02.8]} 46... Nxf3 {[%clk
0:00:06.5]} 0-1